fUSD/lending_fUSD_20250113
["ID","MTS","AMOUNT","RATE_DAILY","PERIOD"]
[348760213,1736773889916,-500.0,0.00011895,2]
[348760214,1736773889925,-500.0,0.00011895,2]
[348760215,1736773889934,-500.0,0.00011895,2]
[348760216,1736773889945,-500.0,0.00011895,2]
[348760217,1736773889954,-563.0,0.00011895,2]
[348760218,1736773889964,-438.41103873,0.000119,2]
[348760219,1736773889973,-546.93,0.00011905,2]
[348760220,1736773889983,-1495.77,0.00011913,2]
[348760221,1736773889994,-4901.24,0.00011913,2]
[348760222,1736773890004,-519.55097188,0.00011913,2]
[348760223,1736773890014,-516.84,0.00011913,2]
[348760224,1736773890024,-500.0,0.00011913,2]
[348760225,1736773890034,-1154.59,0.00011913,2]
[348760226,1736773890044,-1250.94,0.00011913,2]
[348760227,1736773890053,-721.36,0.00011913,2]
[348760228,1736773890063,-2172.52,0.00011913,2]
[348760229,1736773890072,-500.0,0.00011913,2]
[348760230,1736773890082,-3812.19,0.00011913,2]
[348760231,1736773890091,-1080.68,0.00011913,2]
[348760232,1736773890101,-2146.84,0.00011913,2]
[348760233,1736773890110,-2120.16,0.00011913,2]
[348760234,1736773890120,-557.28,0.00011913,2]
[348760235,1736773890130,-1556.94,0.00011913,2]
[348760236,1736773890140,-1818.87,0.00011913,2]
[348760237,1736773890149,-1241.83,0.00011913,2]
[348760238,1736773890161,-1316.25,0.00011913,2]
[348760239,1736773890171,-925.83,0.00011913,2]
[348760240,1736773890180,-2186.15,0.00011913,2]
[348760241,1736773890190,-997.96,0.00011913,2]
[348760242,1736773890200,-626.28,0.00011913,2]
[348760243,1736773890209,-837.48,0.00011913,2]
[348760244,1736773890219,-500.0,0.00011913,2]
[348760245,1736773890228,-1772.62,0.00011913,2]
[348760246,1736773890238,-1607.66,0.00011913,2]
[348760247,1736773890247,-2877.55,0.00011913,2]
[348760248,1736773890257,-500.0,0.00011913,2]
[348760249,1736773890267,-1598.47,0.00011913,2]
[348760250,1736773890276,-500.0,0.00011913,2]
[348760251,1736773890286,-500.0,0.00011913,2]
[348760252,1736773890295,-840.88,0.00011913,2]
[348760253,1736773890305,-4142.48,0.00011913,2]
[348760254,1736773890315,-515.21,0.00011913,2]
[348760255,1736773890325,-643.25,0.00011913,2]
[348760256,1736773890335,-1547.88,0.00011913,2]
[348760257,1736773890345,-633.86,0.00011913,2]
[348760258,1736773890354,-355.18,0.00011914,2]
[348760259,1736773890364,-500.0,0.00011914,2]
[348760260,1736773890373,-562.07,0.00011914,2]
[348760261,1736773890382,-565.59,0.00011914,2]
[348760262,1736773890395,-500.0,0.00011914,2]
[348760263,1736773890405,-500.0,0.00011914,2]
[348760264,1736773890414,-500.0,0.00011914,2]
[348760265,1736773890424,-500.0,0.00011914,2]
[348760266,1736773890434,-500.0,0.00011914,2]
[348760267,1736773890444,-500.0,0.00011914,2]
[348760268,1736773890453,-500.0,0.00011914,2]
[348760269,1736773890463,-500.0,0.00011914,2]
[348760270,1736773890473,-500.0,0.00011914,2]
[348760271,1736773890483,-500.0,0.00011914,2]
[348760272,1736773890492,-500.0,0.00011914,2]
[348760273,1736773890502,-500.0,0.00011914,2]
[348760274,1736773890511,-508.72,0.00011914,2]
[348760275,1736773890521,-500.0,0.00011914,2]
[348760276,1736773890530,-178.02,0.00011914,2]
[348760277,1736773890539,-500.0,0.00011914,2]
[348760278,1736773890549,-500.0,0.00011914,2]
[348760279,1736773890559,-500.0,0.00011914,2]
[348760280,1736773890569,-500.0,0.00011914,2]
[348760281,1736773890579,-500.0,0.00011914,2]
[348760282,1736773890588,-500.0,0.00011914,2]
[348760283,1736773890598,-500.0,0.00011914,2]
[348760284,1736773890608,-500.0,0.00011914,2]
[348760285,1736773890617,-500.0,0.00011914,2]
[348760286,1736773890627,-500.0,0.00011914,2]
[348760287,1736773890637,-500.0,0.00011914,2]
[348760288,1736773890647,-500.0,0.00011914,2]
[348760289,1736773890657,-629.88,0.00011914,2]
[348760290,1736773890666,-794.81,0.00011914,2]
[348760291,1736773890676,-500.0,0.00011914,2]
[348760292,1736773890686,-500.0,0.00011914,2]
[348760293,1736773890696,-894.21,0.00011914,2]
[348760294,1736773890705,-500.0,0.00011914,2]
[348760295,1736773890714,-624.72,0.00011914,2]
[348760296,1736773890724,-500.0,0.00011914,2]
[348760297,1736773890734,-500.0,0.00011914,2]
[348760298,1736773890743,-573.56,0.00011914,2]
[348760299,1736773890753,-874.55,0.00011914,2]
[348760300,1736773890762,-509.94,0.00011914,2]
[348760301,1736773890772,-500.0,0.00011914,2]
[348760302,1736773890782,-327.6,0.00011914,2]
[348760303,1736773890791,-500.0,0.00011914,2]
[348760304,1736773890801,-500.0,0.00011914,2]
[348760305,1736773890811,-864.18,0.00011914,2]
[348760306,1736773890820,-500.0,0.00011914,2]
[348760307,1736773890830,-500.0,0.00011914,2]
[348760308,1736773890839,-405.38590909,0.00011914,2]
[348760309,1736773890850,-613.92,0.00011914,2]
[348760310,1736773890860,-500.0,0.00011914,2]
[348760311,1736773890870,-665.78,0.00011914,2]
[348760312,1736773890880,-634.07,0.00011914,2]
[348760313,1736773890889,-670.59,0.00011914,2]
[348760314,1736773890899,-500.0,0.00011914,2]
[348760315,1736773890909,-500.0,0.00011914,2]
[348760316,1736773890918,-500.0,0.00011914,2]
[348760317,1736773890928,-628.8,0.00011914,2]
[348760318,1736773890938,-959.46,0.00011914,2]
[348760319,1736773890947,-796.53,0.00011914,2]
[348760320,1736773890956,-689.68,0.00011914,2]
[348760321,1736773890966,-500.0,0.00011914,2]
[348760322,1736773890976,-708.66,0.00011914,2]
[348760323,1736773891109,-552.24,0.00011914,2]
[348760324,1736773891118,-500.0,0.00011914,2]
[348760325,1736773891128,-500.0,0.00011914,2]
[348760326,1736773891138,-808.9,0.00011914,2]
[348760327,1736773891147,-376.9589963,0.00011914,2]
[348760328,1736773891157,-645.79,0.00011914,2]
[348760329,1736773891167,-500.0,0.00011914,2]
[348760330,1736773891176,-500.0,0.00011914,2]
[348760331,1736773891186,-500.0,0.00011914,2]
[348760332,1736773891195,-513.42438065,0.00011914,2]
[348760333,1736773891205,-500.0,0.00011914,2]
[348760334,1736773891214,-500.0,0.00011914,2]
[348760335,1736773891224,-500.0,0.00011914,2]
[348760336,1736773891233,-843.32,0.00011914,2]
[348760337,1736773891243,-500.0,0.00011914,2]
[348760338,1736773891253,-500.0,0.00011914,2]
[348760339,1736773891262,-500.0,0.00011914,2]
[348760340,1736773891272,-785.37,0.00011914,2]
[348760341,1736773891282,-500.0,0.00011914,2]
[348760342,1736773891291,-500.0,0.00011914,2]
[348760343,1736773891302,-742.44,0.00011914,2]
[348760344,1736773891311,-2944.45,0.00011914,2]
[348760345,1736773891322,-500.0,0.00011914,2]
[348760346,1736773891333,-500.0,0.00011914,2]
[348760347,1736773891343,-596.72,0.00011914,2]
[348760348,1736773891353,-500.0,0.00011914,2]
[348760349,1736773891364,-500.0,0.00011914,2]
[348760350,1736773891374,-2529.0,0.00011914,2]
[348760351,1736773891384,-500.0,0.00011914,2]
[348760352,1736773891395,-500.0,0.00011914,2]
[348760353,1736773891404,-500.0,0.00011914,2]
[348760354,1736773891414,-500.0,0.00011914,2]
[348760355,1736773891424,-500.0,0.00011914,2]
[348760356,1736773891434,-500.0,0.00011914,2]
[348760357,1736773891444,-520.9,0.00011914,2]
[348760358,1736773891454,-500.0,0.00011914,2]
[348760359,1736773891464,-500.0,0.00011914,2]
[348760360,1736773891474,-500.0,0.00011914,2]
[348760361,1736773891484,-625.92,0.00011914,2]
[348760362,1736773891493,-833.59,0.00011914,2]
[348760363,1736773891503,-500.0,0.00011914,2]
[348760364,1736773891512,-500.0,0.00011914,2]
[348760365,1736773891524,-500.0,0.00011914,2]
[348760366,1736773891538,-702.94,0.00011914,2]
[348760367,1736773891548,-611.22,0.00011914,2]
[348760368,1736773891558,-500.0,0.00011914,2]
[348760369,1736773891567,-500.0,0.00011914,2]
[348760370,1736773891578,-500.0,0.00011914,2]
[348760371,1736773891587,-500.0,0.00011914,2]
[348760372,1736773891597,-500.0,0.00011914,2]
[348760373,1736773891607,-500.0,0.00011914,2]
[348760374,1736773891617,-500.0,0.00011914,2]
[348760375,1736773891627,-617.83,0.00011914,2]
[348760376,1736773891636,-545.27,0.00011914,2]
[348760377,1736773891646,-500.0,0.00011914,2]
[348760378,1736773891656,-500.0,0.00011914,2]
[348760379,1736773891666,-500.0,0.00011914,2]
[348760380,1736773891675,-500.0,0.00011914,2]
[348760381,1736773891686,-735.29,0.00011914,2]
[348760382,1736773891696,-500.0,0.00011914,2]
[348760383,1736773891705,-500.0,0.00011914,2]
[348760384,1736773891715,-500.0,0.00011914,2]
[348760385,1736773891725,-500.0,0.00011914,2]
[348760386,1736773891735,-500.0,0.00011914,2]
[348760387,1736773891745,-640.8,0.00011914,2]
[348760388,1736773891755,-500.0,0.00011914,2]
[348760389,1736773891764,-500.0,0.00011914,2]
[348760390,1736773891774,-500.0,0.00011914,2]
[348760391,1736773891783,-500.0,0.00011914,2]
[348760392,1736773891793,-500.0,0.00011914,2]
[348760393,1736773891803,-500.0,0.00011914,2]
[348760394,1736773891812,-567.68,0.00011914,2]
[348760395,1736773891822,-573.60246127,0.00011914,2]
[348760396,1736773891832,-500.0,0.00011914,2]
[348760397,1736773891842,-500.0,0.00011914,2]
[348760398,1736773891852,-500.0,0.00011914,2]
[348760399,1736773891862,-259.43056555,0.00011914,2]
[348760400,1736773891872,-500.0,0.00011914,2]
[348760401,1736773891882,-500.0,0.00011914,2]
[348760402,1736773891892,-500.0,0.00011914,2]
[348760403,1736773891901,-500.0,0.00011914,2]
[348760404,1736773891912,-500.0,0.00011914,2]
[348760405,1736773891921,-500.0,0.00011914,2]
[348760406,1736773891931,-500.0,0.00011914,2]
[348760407,1736773891941,-500.0,0.00011914,2]
[348760408,1736773891950,-500.0,0.00011914,2]
[348760409,1736773891960,-500.0,0.00011914,2]
[348760410,1736773891970,-500.0,0.00011914,2]
[348760411,1736773891980,-500.0,0.00011914,2]
[348760412,1736773891990,-677.97,0.00011914,2]
[348760413,1736773892000,-500.0,0.00011914,2]
[348760414,1736773892010,-500.0,0.00011914,2]
[348760415,1736773892020,-500.0,0.00011915,2]
[348760416,1736773892040,-539.8,0.00011915,2]
[348760417,1736773892058,-2848.7,0.00011915,2]
[348760418,1736773892076,-987.92,0.00011915,2]
[348760419,1736773892093,-500.0,0.00011915,2]
[348760420,1736773892107,-968.12,0.00011915,2]
[348760421,1736773892125,-1376.84,0.00011915,2]
[348760422,1736773892144,-1394.92,0.00011915,2]
[348760423,1736773892162,-168.87,0.00011915,2]
[348760424,1736773892179,-970.37,0.00011915,2]
[348760425,1736773892196,-500.0,0.00011915,2]
[348760426,1736773892214,-2825.73,0.00011915,2]
[348760427,1736773892228,-643.6586798,0.00011915,2]
[348760428,1736773892247,-500.0,0.00011915,2]
[348760429,1736773892260,-1510.09,0.00011915,2]
[348760430,1736773892278,-500.0,0.00011915,2]
[348760431,1736773892291,-1826.66,0.00011915,2]
[348760432,1736773892307,-500.0,0.00011915,2]
[348760433,1736773892323,-2871.47,0.00011915,2]
[348760434,1736773892339,-500.0,0.00011915,2]
[348760435,1736773892354,-500.0,0.00011915,2]
[348760436,1736773892368,-500.0,0.00011915,2]
[348760437,1736773892386,-500.0,0.00011915,2]
[348760438,1736773892401,-693.24,0.00011915,2]
[348760439,1736773892417,-1782.35,0.00011915,2]
[348760440,1736773892433,-500.0,0.00011915,2]
[348760441,1736773892448,-546.5968487,0.00011915,2]
[348760442,1736773892464,-3169.42,0.00011915,2]
[348760443,1736773892481,-500.0,0.00011915,2]
[348760444,1736773892496,-500.0,0.00011915,2]
[348760445,1736773892510,-500.0,0.00011915,2]
[348760446,1736773892526,-500.0,0.00011915,2]
[348760447,1736773892541,-1235.07,0.00011915,2]
[348760448,1736773892557,-500.0,0.00011915,2]
[348760449,1736773892572,-500.0,0.00011915,2]
[348760450,1736773892586,-1160.03,0.00011915,2]
[348760451,1736773892602,-1125.93,0.00011915,2]
[348760452,1736773892617,-1116.03,0.00011915,2]
[348760453,1736773892631,-500.0,0.00011915,2]
[348760454,1736773892646,-532.77,0.00011915,2]
[348760455,1736773892662,-2597.04,0.00011915,2]
[348760456,1736773892677,-1276.94,0.00011915,2]
[348760457,1736773892693,-1862.47,0.00011915,2]
[348760458,1736773892708,-1136.25,0.00011915,2]
[348760459,1736773892723,-1424.75,0.00011915,2]
[348760460,1736773892737,-461.26,0.00011915,2]
[348760461,1736773892752,-1275.12,0.00011915,2]
[348760462,1736773892766,-1790.95,0.00011915,2]
[348760463,1736773892781,-1239.65,0.00011915,2]
[348760464,1736773892796,-647.88,0.00011915,2]
[348760465,1736773892810,-824.22,0.00011915,2]
[348760466,1736773892824,-586.903202,0.00011915,2]
[348760467,1736773893493,-164.426798,0.00011915,2]
[348760468,1736773893514,-145.41879747,0.00011915,2]
[348760469,1736773893538,-801.61120253,0.00011915,2]
[348760470,1736773893548,-475.42816127,0.00011915,2]
[348760471,1736773894102,-500.0,9.995e-05,2]
[348760472,1736773894112,-599.62,9.996e-05,2]
[348760473,1736773894122,-500.0,9.996e-05,2]
[348760474,1736773894131,-43.30155752,0.00010482,2]
[348760475,1736773894142,-1060.69844248,0.00010482,2]
[348760476,1736773894152,-3578.88185429,0.00011633,2]
[348760477,1736773894196,-275.4999993,0.0001027,2]
[348760478,1736773894208,-224.5000007,0.0001027,2]
[348760479,1736773894218,-4921.11814571,0.00011633,2]
[348760480,1736773894228,-839.09,0.00011913,2]
[348760481,1736773894237,-24.57183873,0.00011915,2]
[348760482,1736773894247,-500.0,0.00011915,2]
[348760483,1736773894257,-1247.15,0.00011916,2]
[348760484,1736773894268,-1195.6,0.00011916,2]
[348760485,1736773894279,-1524.39,0.00011916,2]
[348760486,1736773894290,-1983.77,0.00011916,2]
[348760487,1736773894302,-757.28,0.00011916,2]
[348760488,1736773894313,-636.79,0.00011916,2]
[348760489,1736773894324,-519.85,0.00011916,2]
[348760490,1736773894335,-2164.57,0.00011916,2]
[348760491,1736773894346,-500.0,0.00011916,2]
[348760492,1736773894357,-549.45,0.00011916,2]
[348760493,1736773894367,-1372.06,0.00011916,2]
[348760494,1736773894379,-818.41,0.00011916,2]
[348760495,1736773894391,-500.0,0.00011917,2]
[348760496,1736773894401,-1000.0,0.00011917,2]
[348760497,1736773894418,-735.27,0.00011917,2]
[348760498,1736773894429,-500.0,0.00011917,2]
[348760499,1736773894441,-1122.61,0.00011917,2]
[348760500,1736773894452,-2068.98334803,0.00011959,2]
[348760501,1736773894463,-3292.98860536,0.0001199,2]
[348760502,1736773894473,-24950.97899342,0.00012,2]
[348760503,1736773894484,-32370.58780212,0.00012,2]
[348760504,1736773894494,-17503.4403529,0.00012,2]
[348760505,1736773894505,-126998.88465703,0.00012,2]
[348760506,1736773894516,-30083.5630853,0.00012,2]
[348760507,1736773894526,-500.0,0.00012,2]
[348760508,1736773894537,-300.0,0.00012,2]
[348760509,1736773894547,-6483.40797211,0.00012,4]
[348760510,1736773894558,-273.598045,0.00012,2]
[348760511,1736773894568,-273.598045,0.00012,2]
[348760512,1736773894578,-500.0,0.00012054,2]
[348760513,1736773894588,-8293.14,0.00012055,2]
[348760514,1736773894599,-200.0,0.00012055,2]
[348760515,1736773894609,-2068.98334803,0.00012093,2]
[348760516,1736773894619,-222190.09746065,0.000121,2]
[348760517,1736773894629,-174.350838,0.000121,2]
[348760518,1736773894639,-174.350838,0.000121,2]
[348760519,1736773894649,-1495.77,0.00012187,2]
[348760520,1736773894661,-4901.24,0.00012187,2]
[348760521,1736773894671,-516.84,0.00012187,2]
[348760522,1736773894682,-500.0,0.00012187,2]
[348760523,1736773894692,-1154.59,0.00012187,2]
[348760524,1736773894702,-1250.94,0.00012187,2]
[348760525,1736773894711,-721.36,0.00012187,2]
[348760526,1736773894722,-2172.52,0.00012187,2]
[348760527,1736773894732,-500.0,0.00012187,2]
[348760528,1736773894742,-3812.19,0.00012187,2]
[348760529,1736773894752,-1080.68,0.00012187,2]
[348760530,1736773894762,-2146.84,0.00012187,2]
[348760531,1736773894772,-2120.16,0.00012187,2]
[348760532,1736773894781,-557.28,0.00012187,2]
[348760533,1736773894791,-1818.87,0.00012187,2]
[348760534,1736773894801,-1556.94,0.00012187,2]
[348760535,1736773894811,-1241.83,0.00012187,2]
[348760536,1736773894821,-1316.25,0.00012187,2]
[348760537,1736773894830,-925.83,0.00012187,2]
[348760538,1736773894840,-2186.15,0.00012187,2]
[348760539,1736773894850,-997.96,0.00012187,2]
[348760540,1736773894860,-873.89,0.00012187,2]
[348760541,1736773894870,-626.28,0.00012187,2]
[348760542,1736773894880,-837.48,0.00012187,2]
[348760543,1736773894889,-500.0,0.00012187,2]
[348760544,1736773894898,-1772.62,0.00012187,2]
[348760545,1736773894909,-1607.66,0.00012187,2]
[348760546,1736773894919,-2877.55,0.00012187,2]
[348760547,1736773894928,-500.0,0.00012187,2]
[348760548,1736773894939,-1598.47,0.00012187,2]
[348760549,1736773894948,-500.0,0.00012187,2]
[348760550,1736773894958,-840.88,0.00012187,2]
[348760551,1736773894969,-4142.48,0.00012187,2]
[348760552,1736773894979,-515.21,0.00012187,2]
[348760553,1736773894989,-643.25,0.00012187,2]
[348760554,1736773894998,-1547.88,0.00012187,2]
[348760555,1736773895009,-633.86,0.00012187,2]
[348760556,1736773895018,-839.09,0.00012187,2]
[348760557,1736773895028,-562.07,0.00012188,2]
[348760558,1736773895037,-565.59,0.00012188,2]
[348760559,1736773895048,-500.0,0.00012188,2]
[348760560,1736773895058,-500.0,0.00012188,2]
[348760561,1736773895068,-500.0,0.00012188,2]
[348760562,1736773895077,-500.0,0.00012188,2]
[348760563,1736773895087,-500.0,0.00012188,2]
[348760564,1736773895096,-500.0,0.00012188,2]
[348760565,1736773895105,-500.0,0.00012188,2]
[348760566,1736773895115,-500.0,0.00012188,2]
[348760567,1736773895125,-500.0,0.00012188,2]
[348760568,1736773895134,-500.0,0.00012188,2]
[348760569,1736773895143,-508.72,0.00012188,2]
[348760570,1736773895153,-563.42388103,0.00012188,2]
[348760571,1736773895164,-500.0,0.00012188,2]
[348760572,1736773895174,-500.0,0.00012188,2]
[348760573,1736773895183,-500.0,0.00012188,2]
[348760574,1736773895193,-500.0,0.00012188,2]
[348760575,1736773895202,-500.0,0.00012188,2]
[348760576,1736773895211,-500.0,0.00012188,2]
[348760577,1736773895221,-500.0,0.00012188,2]
[348760578,1736773895231,-500.0,0.00012188,2]
[348760579,1736773895240,-500.0,0.00012188,2]
[348760580,1736773895250,-500.0,0.00012188,2]
[348760581,1736773895260,-794.81,0.00012188,2]
[348760582,1736773895269,-500.0,0.00012188,2]
[348760583,1736773895279,-517.6,0.00012188,2]
[348760584,1736773895288,-894.21,0.00012188,2]
[348760585,1736773895298,-500.0,0.00012188,2]
[348760586,1736773895308,-624.72,0.00012188,2]
[348760587,1736773895318,-500.0,0.00012188,2]
[348760588,1736773895327,-500.0,0.00012188,2]
[348760589,1736773895338,-573.56,0.00012188,2]
[348760590,1736773895347,-874.55,0.00012188,2]
[348760591,1736773895357,-500.0,0.00012188,2]
[348760592,1736773895367,-500.0,0.00012188,2]
[348760593,1736773895377,-500.0,0.00012188,2]
[348760594,1736773895388,-864.18,0.00012188,2]
[348760595,1736773895398,-500.0,0.00012188,2]
[348760596,1736773895408,-500.0,0.00012188,2]
[348760597,1736773895417,-613.92,0.00012188,2]
[348760598,1736773895428,-500.0,0.00012188,2]
[348760599,1736773895438,-665.78,0.00012188,2]
[348760600,1736773895448,-634.07,0.00012188,2]
[348760601,1736773895457,-670.59,0.00012188,2]
[348760602,1736773895467,-500.0,0.00012188,2]
[348760603,1736773895477,-500.0,0.00012188,2]
[348760604,1736773895486,-500.0,0.00012188,2]
[348760605,1736773895496,-628.8,0.00012188,2]
[348760606,1736773895506,-959.46,0.00012188,2]
[348760607,1736773895515,-796.53,0.00012188,2]
[348760608,1736773895524,-689.68,0.00012188,2]
[348760609,1736773895535,-500.0,0.00012188,2]
[348760610,1736773895544,-708.66,0.00012188,2]
[348760611,1736773895554,-552.24,0.00012188,2]
[348760612,1736773895564,-500.0,0.00012188,2]
[348760613,1736773895574,-500.0,0.00012188,2]
[348760614,1736773895583,-808.9,0.00012188,2]
[348760615,1736773895594,-645.79,0.00012188,2]
[348760616,1736773895603,-500.0,0.00012188,2]
[348760617,1736773895613,-500.0,0.00012188,2]
[348760618,1736773895623,-500.0,0.00012188,2]
[348760619,1736773895633,-500.0,0.00012188,2]
[348760620,1736773895642,-500.0,0.00012188,2]
[348760621,1736773895651,-355.39545852,0.00012188,2]
[348760622,1736773895662,-843.32,0.00012188,2]
[348760623,1736773895672,-500.0,0.00012188,2]
[348760624,1736773895682,-500.0,0.00012188,2]
[348760625,1736773895692,-500.0,0.00012188,2]
[348760626,1736773895702,-785.37,0.00012188,2]
[348760627,1736773895712,-500.0,0.00012188,2]
[348760628,1736773895723,-500.0,0.00012188,2]
[348760629,1736773895733,-742.44,0.00012188,2]
[348760630,1736773895743,-2944.45,0.00012188,2]
[348760631,1736773895753,-500.0,0.00012188,2]
[348760632,1736773895763,-500.0,0.00012188,2]
[348760633,1736773895773,-596.72,0.00012188,2]
[348760634,1736773895783,-566.3369737,0.00012188,2]
[348760635,1736773895793,-500.0,0.00012188,2]
[348760636,1736773895803,-2529.0,0.00012188,2]
[348760637,1736773895813,-500.0,0.00012188,2]
[348760638,1736773895822,-500.0,0.00012188,2]
[348760639,1736773895832,-500.0,0.00012188,2]
[348760640,1736773895842,-500.0,0.00012188,2]
[348760641,1736773895851,-500.0,0.00012188,2]
[348760642,1736773895862,-520.9,0.00012188,2]
[348760643,1736773895871,-500.0,0.00012188,2]
[348760644,1736773895881,-500.0,0.00012188,2]
[348760645,1736773895890,-500.0,0.00012188,2]
[348760646,1736773895900,-833.59,0.00012188,2]
[348760647,1736773895910,-500.0,0.00012188,2]
[348760648,1736773895920,-500.0,0.00012188,2]
[348760649,1736773895929,-500.0,0.00012188,2]
[348760650,1736773895939,-702.94,0.00012188,2]
[348760651,1736773895948,-611.22,0.00012188,2]
[348760652,1736773895958,-500.0,0.00012188,2]
[348760653,1736773895969,-500.0,0.00012188,2]
[348760654,1736773895978,-500.0,0.00012188,2]
[348760655,1736773895988,-500.0,0.00012188,2]
[348760656,1736773895997,-500.0,0.00012188,2]
[348760657,1736773896007,-500.0,0.00012188,2]
[348760658,1736773896018,-500.0,0.00012188,2]
[348760659,1736773896027,-617.83,0.00012188,2]
[348760660,1736773896037,-545.27,0.00012188,2]
[348760661,1736773896046,-500.0,0.00012188,2]
[348760662,1736773896056,-500.0,0.00012188,2]
[348760663,1736773896065,-500.0,0.00012188,2]
[348760664,1736773896075,-328.30539019,0.00012188,2]
[348760665,1736773896084,-735.29,0.00012188,2]
[348760666,1736773896094,-630.53246127,0.00012188,2]
[348760667,1736773896103,-500.0,0.00012188,2]
[348760668,1736773896112,-500.0,0.00012188,2]
[348760669,1736773896122,-441.96,0.00012188,2]
[348760670,1736773896132,-500.0,0.00012188,2]
[348760671,1736773896142,-640.8,0.00012188,2]
[348760672,1736773896152,-500.0,0.00012188,2]
[348760673,1736773896162,-500.0,0.00012188,2]
[348760674,1736773896172,-500.0,0.00012188,2]
[348760675,1736773896340,-500.0,0.00012188,2]
[348760676,1736773896352,-500.0,0.00012188,2]
[348760677,1736773896363,-500.0,0.00012188,2]
[348760678,1736773896373,-567.68,0.00012188,2]
[348760679,1736773896385,-500.0,0.00012188,2]
[348760680,1736773896398,-500.0,0.00012188,2]
[348760681,1736773896409,-500.0,0.00012188,2]
[348760682,1736773896419,-500.0,0.00012188,2]
[348760683,1736773896430,-500.0,0.00012188,2]
[348760684,1736773896440,-500.0,0.00012188,2]
[348760685,1736773896450,-500.0,0.00012188,2]
[348760686,1736773896460,-500.0,0.00012188,2]
[348760687,1736773896470,-500.0,0.00012188,2]
[348760688,1736773896481,-500.0,0.00012188,2]
[348760689,1736773896491,-500.0,0.00012188,2]
[348760690,1736773896501,-500.0,0.00012188,2]
[348760691,1736773896514,-500.0,0.00012188,2]
[348760692,1736773896525,-514.30030868,0.00012188,2]
[348760693,1736773896535,-500.0,0.00012188,2]
[348760694,1736773896545,-677.97,0.00012188,2]
[348760695,1736773896555,-500.0,0.00012188,2]
[348760696,1736773896565,-500.0,0.00012188,2]
[348760697,1736773896575,-500.0,0.00012189,2]
[348760698,1736773896585,-539.8,0.00012189,2]
[348760699,1736773896595,-2848.7,0.00012189,2]
[348760700,1736773896605,-987.92,0.00012189,2]
[348760701,1736773896614,-500.0,0.00012189,2]
[348760702,1736773896624,-968.12,0.00012189,2]
[348760703,1736773896634,-1376.84,0.00012189,2]
[348760704,1736773896643,-1394.92,0.00012189,2]
[348760705,1736773896653,-970.37,0.00012189,2]
[348760706,1736773896663,-500.0,0.00012189,2]
[348760707,1736773896673,-2825.73,0.00012189,2]
[348760708,1736773896683,-338.37830854,0.00012189,2]
[348760709,1736773896693,-1510.09,0.00012189,2]
[348760710,1736773896703,-500.0,0.00012189,2]
[348760711,1736773896713,-1826.66,0.00012189,2]
[348760712,1736773896722,-500.0,0.00012189,2]